[Event "1st Semana Santa Torrevieja 2022"]
[Site "Torrevieja Alicante"]
[Date "2022.04.16"]
[Round "6.1"]
[White "Moussard, Jules"]
[Black "Yuffa, Daniil"]
[Result "1/2-1/2"]
[ECO "B90"]
[WhiteElo "2630"]
[BlackElo "2576"]
[Annotator "TA"]
[PlyCount "109"]
[EventDate "2022.04.12"]
[EventType "swiss"]
[EventCountry "ESP"]
[SourceTitle "playchess.com"]
[Source "ChessBase"]
[SourceQuality "1"]
[TimeControl "5400+30"]

{[%evp 9,109,11,12,15,12,25,24,0,0,0,27,31,45,59,73,50,47,55,52,61,51,33,42,35,41,27,35,33,24,25,48,8,8,6,22,0,0,0,0,0,0,0,0,0,0,0,0,0,0,0,0,0,0,0,12,0,0,0,27,0,0,0,0,0,0,0,0,0,0,-21,-9,-12,-9,-70,-8,-8,-14,-8,-15,-8,0,0,0,0,0,0,0,0,0,0,-1,-8,-8,-8,-8,-8,-8,-8,-8,-8,-8,-8]} 1. e4 {[%emt 0:00:02]} c5 {[%emt 0:01:12]} 2. Nf3 {[%emt 0:00:10]} d6 {[%emt 0:00:09]} 3. d4 {[%emt 0:00:17]} cxd4 {[%emt 0:00:11]} 4. Nxd4 {[%emt 0:00:05]} Nf6 {[%emt 0:00:07]} 5. Nc3 {[%emt 0:00:04]} a6 {[%emt 0:00:08]} 6. Qd3 {[%emt 0:05:14] B90: Sicilian Najdorf: Unusual White 6th moves, 6 Be3 Ng4 and 6 Be3 e5.} Nbd7 {[%emt 0:00:42]} 7. Be2 {[%emt 0:00:19]} b5 {[%emt 0:01:00]} 8. Nd5 {[%emt 0:00:32] White has an edge.} Bb7 {[%emt 0:01:41] Prevents Nc6.} 9. a4 {[%emt 0:00:29]} b4 {[%emt 0:06:30] [#]} 10. Qc4 $146 {[%emt 0:07:51] [#] aiming for Nc7+.} ({Predecessor:} 10. Nxf6+ Nxf6 11. Bf3 e6 12. O-O Be7 13. a5 O-O 14. Nb3 Rc8 15. Be3 d5 16. Bb6 {0-1 (63) Gadimbayli,A (2470)-Sarana,A (2649) Chess.com INT 2021}) 10... Bxd5 {[%emt 0:13:21]} 11. exd5 {[%emt 0:00:20] Strongly threatening Nc6.} Qa5 $1 {[%emt 0:00:22]} 12. Bd2 {[%emt 0:28:06] &Bianco is more active.} (12. O-O $5 {[%cal Rd4b3]}) 12... Qxd5 {[%emt 0:00:09]} 13. Qxd5 {[%emt 0:00:52]} ({Don't play} 13. Bxb4 Qxc4 14. Bxc4 d5 $15) 13... Nxd5 {[%emt 0:00:05]} 14. Bf3 {[%emt 0:00:16]} N7f6 {[%emt 0:00:12]} 15. g4 {[%emt 0:02:53] [#] Hoping for g5.} h6 {[%emt 0:05:38]} 16. h4 {[%emt 0:01:09]} e6 $1 {[%emt 0:03:01]} 17. g5 {[%emt 0:01:17]} hxg5 {[%emt 0:00:06]} 18. hxg5 {[%emt 0:00:03]} Rxh1+ {[%emt 0:00:05]} 19. Bxh1 {[%emt 0:00:04]} Ng4 {[%emt 0:00:24]} 20. Bxb4 {[%emt 0:11:17]} Rb8 {[%emt 0:06:07]} 21. Ba3 {[%emt 0:00:07]} Nf4 {[%emt 0:09:56]} 22. b3 {[%emt 0:16:47]} (22. Bc6+ {looks sharper.} Kd8 23. b4 Kc7 24. b5) 22... d5 {[%emt 0:04:23]} 23. Bxf8 {[%emt 0:00:04]} Kxf8 {[%emt 0:00:04]} 24. Bf3 {[%emt 0:00:05]} Ne5 {[%emt 0:00:18]} 25. Be2 {[%emt 0:00:29]} a5 {[%emt 0:02:23]} 26. Kd2 {[%emt 0:02:19]} Ke7 {[%emt 0:13:54]} 27. Rh1 {[%emt 0:00:04]} Kd6 {[%emt 0:01:27]} 28. Bb5 {[%emt 0:02:18]} Rg8 {[%emt 0:03:34]} 29. Ke3 {[%emt 0:01:49]} Ng2+ {[%emt 0:00:13] Pair of Knights!} 30. Kd2 {[%emt 0:00:48]} Nf4 {[%emt 0:00:20]} 31. Rh7 {[%emt 0:01:36]} Nfg6 {[%emt 0:01:13]} 32. Be2 {[%emt 0:01:55]} Nf4 {[%emt 0:05:41]} 33. Bb5 {[%emt 0:01:51]} Nfg6 {[%emt 0:00:26]} 34. Ke3 {[%emt 0:02:43]} (34. c3 $5 {[%cal Rb3b4]}) 34... Ng4+ {[%emt 0:00:13]} 35. Ke2 {[%emt 0:00:16][%cal Of2f4]} N4e5 {[%emt 0:00:37]} 36. Kd2 {[%emt 0:00:37]} Nf4 {[%emt 0:00:43]} 37. c3 {[%emt 0:01:33]} Kc5 {[%emt 0:02:30] Inhibits b4+.} 38. Bf1 {[%emt 0:03:16]} Nc6 {[%emt 0:02:56]} 39. Nf3 {[%emt 0:02:34]} e5 {[%emt 0:01:37]} 40. Bb5 {[%emt 0:01:21]} Ng6 {[%emt 0:00:04]} 41. Ne1 {[%emt 0:01:05]} (41. Rh1 $11) 41... Kd6 {[%emt 0:04:46]} ({Black should play} 41... Nd8 $15) 42. Bxc6 $11 {[%emt 0:01:23] The position is equal.} Kxc6 {[%emt 0:00:02][%mdl 4096] Endgame KRN-KRN} 43. b4 {[%emt 0:00:08]} axb4 {[%emt 0:01:52]} 44. cxb4 {[%emt 0:00:01]} d4 {[%emt 0:00:14]} 45. f3 {[%emt 0:00:05][%cal Bf2f3,Bf3f4][%mdl 32]} Nf8 {[%emt 0:04:44]} 46. Rh1 {[%emt 0:00:05]} Ne6 {[%emt 0:00:16]} 47. Nd3 {[%emt 0:00:16]} Nxg5 {[%emt 0:01:36]} 48. Nxe5+ {[%emt 0:03:41]} Kd5 {[%emt 0:00:07]} 49. Rh5 {[%emt 0:01:47][%csl LRf7,LRg5]} f6 {[%emt 0:00:11]} 50. f4 {[%emt 0:00:28] Threatens to win with Ng6.} Ne4+ {[%emt 0:00:51]} 51. Kd3 {[%emt 0:00:03] Black must now prevent Ng6+.} Ng3 {[%emt 0:02:54]} 52. Ng6+ $1 {[%emt 0:00:09]} Nxh5 {[%emt 0:00:06]} 53. Ne7+ {[%emt 0:00:01]} Kd6 {[%emt 0:01:30]} 54. Nxg8 {[%emt 0:00:03]} Nxf4+ {[%emt 0:00:08]} 55. Kxd4 {[%emt 0:04:53] Weighted Error Value: White=0.07 (flawless) /Black=0.04 (flawless)} 1/2-1/2

[Event "1st Semana Santa Torrevieja 2022"]
[Site "Torrevieja Alicante"]
[Date "2022.04.16"]
[Round "6.2"]
[White "Rakotomaharo, Fy Antenaina"]
[Black "Grigoryan, Karen H."]
[Result "0-1"]
[ECO "B62"]
[WhiteElo "2474"]
[BlackElo "2636"]
[Annotator "TA"]
[PlyCount "102"]
[EventDate "2022.04.12"]
[EventType "swiss"]
[EventCountry "ESP"]
[SourceTitle "playchess.com"]
[Source "ChessBase"]
[SourceQuality "1"]
[TimeControl "5400+30"]

{[%evp 13,102,18,37,15,19,13,31,31,24,20,28,0,8,14,24,17,0,-14,23,22,36,22,60,56,69,35,96,96,98,106,102,101,101,97,99,100,166,151,161,150,132,139,169,110,183,57,45,50,43,43,47,8,8,8,8,0,22,24,54,8,8,8,88,0,0,0,0,-77,0,-210,-51,-236,-333,-375,-357,-683,-624,-989,-972,-910,-656,-7056,-5791,-29977,-29978,-29978,-29979,-29979,-29979,-29984,-29984]} 1. e4 {[%emt 0:00:04]} c5 {[%emt 0:06:32]} 2. Nf3 {[%emt 0:00:07]} d6 {[%emt 0:00:30]} 3. d4 {[%emt 0:00:07]} cxd4 {[%emt 0:00:05]} 4. Nxd4 {[%emt 0:00:04]} Nf6 {[%emt 0:00:06]} 5. Nc3 {[%emt 0:00:04]} Nc6 {[%emt 0:00:49]} 6. Bg5 {[%emt 0:00:35]} e6 {[%emt 0:00:13]} 7. Bb5 {[%emt 0:05:42]} Bd7 {[%emt 0:00:22]} 8. Qd3 {[%emt 0:00:05] outshines the older 8.Bxc6. B62: Sicilian: Richter-Rauzer: 6...e6: Unusual White 7th moves.} Be7 {[%emt 0:00:54]} 9. O-O-O {[%emt 0:00:11]} O-O {[%emt 0:01:06]} 10. Bxc6 {[%emt 0:00:59] White is slightly better.} bxc6 {[%emt 0:05:18]} 11. Nb3 {[%emt 0:00:39][%cal Oe4e5]} a5 {[%emt 0:04:57] [#]} 12. e5 $146 {[%emt 0:05:07]} ({Predecessor:} 12. Bxf6 gxf6 13. Qg3+ Kh8 14. Rxd6 Bxd6 15. Qxd6 Ra7 16. Rd1 Qc7 17. Qxf8# {1-0 (17) Kiolbasa,O (2399)-Hartikainen,J (2133) Chess.com INT 2021}) 12... Nd5 $1 {[%emt 0:03:45]} 13. Bxe7 {[%emt 0:00:09]} Qxe7 {[%emt 0:00:05]} 14. exd6 {[%emt 0:00:24]} Qxd6 {[%emt 0:00:06]} 15. Ne4 {[%emt 0:03:21]} Qf4+ {[%emt 0:00:35]} (15... Qe7 $5 {[%cal Ra5a4]}) 16. Kb1 {[%emt 0:00:06]} e5 {[%emt 0:04:43]} 17. g3 $36 {[%emt 0:16:16][%mdl 2048] Black is under pressure.} Qf5 {[%emt 0:03:13]} 18. Nbc5 {[%emt 0:00:46][%cal Og3g4] Pair of Knights!} Be6 {[%emt 0:05:01]} 19. a3 {[%emt 0:03:48] Against Nb4} Rab8 {[%emt 0:08:12]} (19... f6 $14) 20. h4 $16 {[%emt 0:01:17]} Nf6 {[%emt 0:05:49]} 21. f3 {[%emt 0:15:39]} (21. Nxe6 Qxe6 22. Rhe1 Nd5 $14) 21... Bd5 {[%emt 0:17:47]} 22. Nxf6+ {[%emt 0:06:28]} Qxf6 {[%emt 0:00:13]} 23. Nd7 $1 {[%emt 0:01:06][%csl LRb8,LRf6,LRf8]} (23. Ne4 $6 Qe7 $11) 23... Qxf3 {[%emt 0:00:16]} 24. Rhe1 {[%emt 0:00:38]} e4 {[%emt 0:03:15]} (24... Qxd3 $16 {might work better.} 25. Rxd3 (25. cxd3 f6 $14) 25... f6) 25. Qe3 $1 $18 {[%emt 0:04:55]} (25. Qxf3 exf3 26. Nxb8 (26. Nxf8 Kxf8 27. Rd2 Bc4 $16) 26... Rxb8 $16) 25... f5 {[%emt 0:07:56]} 26. Nxb8 {[%emt 0:07:37]} (26. Nxf8 Kxf8 27. Qc5+ Kg8 $14) 26... Rxb8 {[%emt 0:02:30]} 27. Rd4 {[%emt 0:00:48]} Qxe3 {[%emt 0:02:28]} 28. Rxe3 $16 {[%emt 0:00:06][%mdl 4096] Endgame KRR-KRB} h6 {[%emt 0:00:51]} (28... Kf7 $16 {is a better defense.}) 29. h5 {[%emt 0:03:05]} ({White should play} 29. Ra4 $1 $18) 29... Bf7 $14 {[%emt 0:05:48]} 30. g4 {[%emt 0:03:03]} fxg4 {[%emt 0:00:06]} 31. Rdxe4 {[%emt 0:00:08]} Bxh5 {[%emt 0:00:08]} 32. a4 {[%emt 0:01:53]} Rd8 {[%emt 0:00:40]} 33. b3 {[%emt 0:03:13]} Rd5 {[%emt 0:03:04]} 34. Kb2 {[%emt 0:00:14]} Rg5 {[%emt 0:00:31] aiming for ...g3.} 35. Rg3 {[%emt 0:00:06][%mdl 1024] White has compensation.} Kf7 {[%emt 0:00:58]} 36. c3 {[%emt 0:01:30]} (36. b4 $1 $14) 36... Kf6 $11 {[%emt 0:01:28]} 37. b4 {[%emt 0:01:20]} Rf5 {[%emt 0:00:34]} (37... Kf5 $11 {keeps the balance.} 38. Rc4 Bf7 39. Rxc6 Bd5) 38. Rc4 {[%emt 0:09:26]} (38. Rg1 $16) 38... Kg5 {[%emt 0:00:22]} (38... Rf2+ 39. Kc1 $16) 39. Rg1 {[%emt 0:01:59]} Kh4 {[%emt 0:01:32]} (39... Rf2+ $2 40. Ka3 $18) 40. Rxc6 {[%emt 0:02:04]} (40. Ka3 $11 {remains equal.}) 40... Rf2+ {[%emt 0:02:15]} (40... g3 $1 $17 {...Kh3 is the strong threat.} 41. b5 Bf3) 41. Ka3 $2 {[%emt 0:00:26]} (41. Kb3 $11 {and White stays safe.} g3 42. b5 (42. bxa5 g2 $11)) 41... g3 $1 $19 {[%emt 0:00:38][%cal Bg4g3,Bg3g2][%mdl 32] Threatens to win with ...g2.} 42. bxa5 $2 {[%emt 0:01:05]} (42. Rc7 $1 $15 g6 43. bxa5) 42... g2 {[%emt 0:00:39]} 43. a6 {[%emt 0:00:24]} Kg3 {[%emt 0:01:01]} 44. Rc8 $2 {[%emt 0:04:34]} (44. Rc7 g5 45. Rh7 Bf3 46. Rxh6 Rf1 47. Rxg2+ Bxg2 $19) (44. Rb6 Kh2 45. Rxg2+ $1 (45. a7 Bf3 $15) 45... Rxg2 46. a7) 44... Rf7 $1 {[%emt 0:00:37]} 45. Rb8 {[%emt 0:00:34]} Bf3 {[%emt 0:00:23] Against Rb7} ({Stronger than} 45... Kf2 46. Rxg2+ Kxg2 47. Rb7 $11) 46. Rgb1 {[%emt 0:00:37]} h5 {[%emt 0:02:20][%cal Bh6h5,Bh5h4][%mdl 32] White must now prevent ...h4.} 47. R8b7 {[%emt 0:00:36]} Bxb7 {[%emt 0:01:59]} 48. axb7 {[%emt 0:00:04] [#]} Rxb7 $1 {[%emt 0:00:16][%mdl 512] Black mates.} 49. Rxb7 {[%emt 0:00:04] [#]} g5 $1 {[%emt 0:00:06][%cal Bg7g5,Bg5g4][%mdl 32]} 50. Rb5 {[%emt 0:01:23]} g4 {[%emt 0:00:20]} 51. Rb1 {[%emt 0:00:06] [#]} h4 $1 {[%emt 0:00:07] Black used his chance.  Weighted Error Value: White=0.62/Black=0.17 (very precise)} 0-1

[Event "1st Semana Santa Torrevieja 2022"]
[Site "Torrevieja Alicante"]
[Date "2022.04.16"]
[Round "6.3"]
[White "Alonso Garcia, Aaron"]
[Black "Cuenca Jimenez, Jose Fernando"]
[Result "0-1"]
[ECO "B32"]
[WhiteElo "2374"]
[BlackElo "2552"]
[Annotator "TA"]
[PlyCount "102"]
[EventDate "2022.04.12"]
[EventType "swiss"]
[EventCountry "ESP"]
[SourceTitle "playchess.com"]
[Source "ChessBase"]
[SourceQuality "1"]
[TimeControl "5400+30"]

{[%evp 14,102,36,50,49,29,39,27,35,19,16,0,0,-4,-5,-7,-2,-9,-12,-12,-9,-7,-7,-2,0,0,0,-15,0,0,0,0,0,0,0,0,0,0,0,0,0,0,0,0,0,0,0,0,0,0,0,-15,-12,-13,-19,-40,-31,-35,-4,-43,-9,-32,-16,-40,8,8,8,8,15,0,0,0,0,0,0,-1082,-1082,-1082,-1081,-1279,-1279,-1240,-1240,-1279,-1262,-1150,-1104,-939,-792,-1157,-1150]} 1. e4 {[%emt 0:08:40]} c5 {[%emt 0:00:49]} 2. Nf3 {[%emt 0:01:14][%cal Bg1f3,Bf3d4,Bd4b5,Bb5a3,Ba3c4,Bc4e3][%mdl 32]} Nc6 {[%emt 0:00:06]} 3. d4 {[%emt 0:01:10]} cxd4 {[%emt 0:00:06]} 4. Nxd4 {[%emt 0:00:03]} e5 {[%emt 0:00:06]} 5. Nb5 {[%emt 0:00:04]} d6 {[%emt 0:00:05]} 6. N1c3 {[%emt 0:00:25]} a6 {[%emt 0:00:32]} 7. Na3 {[%emt 0:00:02]} Be7 {[%emt 0:00:12]} 8. Nc4 {[%emt 0:03:30]} b5 {[%emt 0:00:56] B32: Sicilian: Löwenthal and Kalashnikov Variations.} 9. Ne3 {[%emt 0:00:10]} (9. Qd5 Bb7 10. Ne3 Nf6 $11) 9... Nf6 {[%emt 0:00:08]} 10. g3 {[%emt 0:04:04]} h5 {[%emt 0:00:18] White has an edge.} 11. h4 {[%emt 0:07:24]} Nd4 {[%emt 0:01:49] [#]} 12. Ncd5 $146 {[%emt 0:04:26]} ({Predecessor:} 12. Bg2 Be6 13. Ncd5 Nxd5 14. Nxd5 Bxd5 15. exd5 g6 16. c3 Nf5 17. a4 O-O 18. Qd3 {½-½ (39) So,W (2754)-Carlsen,M (2861) Abidjan 2019}) 12... Nxd5 {[%emt 0:20:17]} ({Much less strong is} 12... Nxe4 13. c3 Nc6 14. a4 $16 (14. Qf3 Nc5 $14)) 13. exd5 {[%emt 0:00:50]} Nf5 {[%emt 0:05:29]} 14. Be2 {[%emt 0:07:58]} g6 {[%emt 0:01:47]} 15. c3 {[%emt 0:12:23]} Nxe3 {[%emt 0:03:49]} 16. Bxe3 {[%emt 0:00:48]} Bd7 {[%emt 0:00:16]} 17. Qd2 {[%emt 0:02:55]} f5 {[%emt 0:03:25]} 18. f4 {[%emt 0:06:17]} Bf6 {[%emt 0:02:47]} 19. O-O {[%emt 0:04:31]} O-O {[%emt 0:01:00]} 20. fxe5 {[%emt 0:05:06]} Bxe5 {[%emt 0:09:11]} 21. Kg2 {[%emt 0:01:26]} Re8 {[%emt 0:02:52]} 22. Bf3 {[%emt 0:01:54]} Rc8 {[%emt 0:03:35]} 23. Rac1 {[%emt 0:00:56]} Qf6 {[%emt 0:03:32]} 24. a3 {[%emt 0:03:10]} Rc4 {[%emt 0:04:31]} 25. Bg5 {[%emt 0:00:06]} Qg7 {[%emt 0:00:29]} 26. Rfe1 {[%emt 0:01:50]} a5 {[%emt 0:07:55]} 27. Qf2 {[%emt 0:02:34]} f4 {[%emt 0:11:06]} 28. gxf4 {[%emt 0:05:07]} Bxf4 {[%emt 0:00:04]} 29. Rxe8+ {[%emt 0:00:32]} Bxe8 {[%emt 0:00:01]} 30. Re1 {[%emt 0:00:34]} Be5 {[%emt 0:01:10]} 31. Qb6 {[%emt 0:00:43]} b4 {[%emt 0:10:30]} 32. Qxa5 {[%emt 0:04:18] [#] aiming for Qd8.} bxc3 {[%emt 0:00:42]} 33. bxc3 {[%emt 0:01:14]} Qd7 {[%emt 0:00:16]} (33... Rxc3 $2 {[#]} 34. Qxc3 $3 {[%mdl 512]} Bxc3 35. Rxe8+ Kf7 36. Re7+ Kf8 37. Rxg7 $18) 34. Rxe5 {[%emt 0:07:31]} dxe5 {[%emt 0:00:25]} 35. d6 $1 {[%emt 0:00:01]} e4 {[%emt 0:02:00]} 36. Be2 {[%emt 0:00:20]} Rc8 {[%emt 0:00:50]} 37. Qe5 {[%emt 0:00:50][%cal Oa3a4]} Qf7 {[%emt 0:03:03]} 38. Be3 {[%emt 0:01:05] Black must now prevent Bd4.} Qa2 {[%emt 0:01:51]} (38... Kh7 $15) 39. Kf2 $11 {[%emt 0:01:47][%cal Oc3c4] Threatening mate with c4!} Bd7 {[%emt 0:00:56] Strongly threatening ...Bg4.} 40. Bd4 {[%emt 0:00:17][%csl Gd4][%cal Re5g7]} Qf7+ {[%emt 0:00:51]} 41. Kg3 {[%emt 0:02:45][%csl Gd4][%cal Re5h8][%mdl 1024] White has compensation.} Kh7 {Prevents Qh8+.} 42. Bc4 {[%emt 0:00:00]} Qf8 {[%emt 0:00:59] Dancing on a razor blade.} 43. Be2 {[%emt 0:00:27] A strong pair of Bishops.} Re8 $40 {[%emt 0:00:39][%mdl 128] Black mounts an attack.} 44. Qd5 {[%emt 0:00:30][%mdl 8192]} (44. Qf4 $11) 44... e3 $19 {[%emt 0:00:29][%csl Ge3][%cal Rf8f2] Black is clearly winning.} 45. Qf3 {[%emt 0:00:32] Inhibits Qf2+.} Qxf3+ {[%emt 0:00:25]} 46. Kxf3 {[%emt 0:00:28][%mdl 4096] Endgame KRB-KB} Bg4+ {[%emt 0:00:11]} 47. Kf4 {[%emt 0:00:01]} Bxe2 {[%emt 0:00:07]} 48. Bxe3 {[%emt 0:00:10]} Bb5 {[%emt 0:00:24]} 49. Bd4 {[%emt 0:01:16]} Kg8 {[%emt 0:00:14]} 50. Bf6 {[%emt 0:00:27]} Kf7 {[%emt 0:00:46]} 51. Be7 {[%emt 0:00:12]} Rc8 {[%emt 0:01:59] Weighted Error Value: White=0.37/Black=0.02 (flawless)} 0-1

[Event "1st Semana Santa Torrevieja 2022"]
[Site "Torrevieja Alicante"]
[Date "2022.04.16"]
[Round "6.4"]
[White "Dardha, Daniel"]
[Black "Cruz Lledo, Pablo"]
[Result "1-0"]
[ECO "D30"]
[WhiteElo "2541"]
[BlackElo "2430"]
[Annotator "TA"]
[PlyCount "51"]
[EventDate "2022.04.12"]
[EventType "swiss"]
[EventCountry "ESP"]
[SourceTitle "playchess.com"]
[Source "ChessBase"]
[SourceQuality "1"]
[TimeControl "5400+30"]

{[%evp 14,51,23,11,12,12,12,4,11,21,22,5,35,31,29,28,27,14,31,7,28,27,18,16,108,36,437,420,409,414,423,418,441,432,426,420,455,471,29996,29997]} 1. c4 {[%emt 0:00:16]} c6 {[%emt 0:00:04]} 2. Nf3 {[%emt 0:00:24]} d5 {[%emt 0:00:03]} 3. e3 {[%emt 0:00:11]} Nf6 {[%emt 0:00:12]} 4. d4 {[%emt 0:00:05]} e6 {[%emt 0:00:10]} 5. Bd3 {[%emt 0:00:50]} Nbd7 {[%emt 0:00:11]} 6. O-O {[%emt 0:00:35]} Bd6 {[%emt 0:00:08] 6...Bd6 is better than 6...dxc4.} 7. Qc2 {[%emt 0:05:28]} O-O {[%emt 0:01:06]} 8. Nbd2 {[%emt 0:00:17]} e5 {[%emt 0:01:04] D30: Queen's Gambit Declined: Systems without Nc3.} 9. cxd5 {[%emt 0:08:27]} (9. Nxe5 {seems wilder.} Nxe5 10. dxe5 Bxe5 11. cxd5 cxd5 12. Nf3) 9... cxd5 {[%emt 0:00:06] [#] Strongly threatening ...e4.} 10. dxe5 {[%emt 0:01:05]} Nxe5 {[%emt 0:00:10] The position is equal.} 11. Nxe5 {[%emt 0:03:17]} Bxe5 {[%emt 0:00:13]} 12. Nf3 {[%emt 0:00:07]} Bc7 {[%emt 0:00:22] [#]} 13. h3 $5 $146 {[%emt 0:08:29][%mdl 8] New and interesting.} ({Predecessor:} 13. b3 Bg4 14. Ba3 Re8 15. Ng5 g6 16. h3 Bd7 17. Rad1 Rc8 18. Qe2 Bb8 19. Bb2 {1-0 (43) Tran,T (2518)-Ghazarian,K (2181) Chess.com INT 2020}) 13... Re8 {[%emt 0:00:22]} 14. Rd1 {[%emt 0:02:39]} Ne4 {[%emt 0:01:40]} 15. b3 {[%emt 0:26:29]} Bf5 {[%emt 0:00:39]} 16. Bb2 {[%emt 0:00:11]} Rc8 {[%emt 0:02:34][%cal Oc7g3] And now ...Bg3! would win.} 17. Qe2 {[%emt 0:01:29]} Qd6 {[%emt 0:37:49]} 18. Rac1 {[%emt 0:01:15][%cal Od3c4]} Qh6 {[%emt 0:04:15]} (18... a6 $11 {remains equal.}) 19. Qf1 {[%emt 0:11:39]} ({White should try} 19. Nd4 $16 Bg6 20. Rc2) 19... Qg6 {[%emt 0:11:27][%mdl 8192] Loses the game.} (19... Qd6 $14) 20. Nh4 $18 {[%emt 0:01:46]} Qg5 {[%emt 0:01:32]} 21. Nxf5 {[%emt 0:00:10] Chess con chili.} Qxf5 {[%emt 0:00:02]} 22. f3 {[%emt 0:04:09]} Qg5 {[%emt 0:00:14]} 23. fxe4 {[%emt 0:00:17]} Qxe3+ {[%emt 0:00:06]} 24. Kh1 {[%emt 0:00:28][%cal Oe4e5] Black must now prevent e5!} dxe4 {[%emt 0:02:12]} 25. Bc4 {[%emt 0:00:56]} Kh8 {[%emt 0:09:31] [#]} (25... Re7 $18 26. Qf5 Rf8) 26. Bxg7+ $1 {[%emt 0:00:20][%mdl 512] Weighted Error Value: White=0.07 (flawless) /Black=1.06} 1-0

[Event "1st Semana Santa Torrevieja 2022"]
[Site "Torrevieja Alicante"]
[Date "2022.04.16"]
[Round "6.5"]
[White "Nasuta, Grzegorz"]
[Black "Habans Aguerrea, Javier"]
[Result "1/2-1/2"]
[ECO "B12"]
[WhiteElo "2530"]
[BlackElo "2340"]
[Annotator "TA"]
[PlyCount "91"]
[EventDate "2022.04.12"]
[EventType "swiss"]
[EventCountry "ESP"]
[SourceTitle "playchess.com"]
[Source "ChessBase"]
[SourceQuality "1"]
[TimeControl "5400+30"]

{[%evp 9,91,10,0,10,6,11,4,0,0,0,8,0,12,8,4,8,34,30,44,38,42,38,42,33,53,46,54,44,47,39,53,35,89,89,90,83,91,93,85,91,86,91,77,0,0,0,0,0,0,0,0,0,0,0,0,0,0,0,0,0,0,0,0,0,0,0,0,0,0,0,0,0,0,0,0,0,0,0,0,0,0,0,0,0]} 1. e4 {[%emt 0:00:02]} c6 {[%emt 0:00:07]} 2. d4 {[%emt 0:00:06]} d5 {[%emt 0:00:07]} 3. e5 {[%emt 0:00:22]} c5 {[%emt 0:00:16]} 4. dxc5 {[%emt 0:00:16]} e6 {[%emt 0:00:13]} 5. Be3 {[%emt 0:04:01]} Nd7 {[%emt 0:01:04]} 6. Nf3 {[%emt 0:00:13] B12: Caro-Kann: Advance Variation.} Bxc5 {[%emt 0:01:16]} 7. Bxc5 {[%emt 0:00:08]} Nxc5 {[%emt 0:00:06]} 8. Qd4 {[%emt 0:00:06]} Qb6 {[%emt 0:05:17]} 9. Nbd2 {[%emt 0:00:16]} Ne7 {[%emt 0:02:32]} 10. Nb3 {[%emt 0:00:07]} Nxb3 {[%emt 0:03:53]} 11. axb3 {[%emt 0:00:07]} Qxd4 {[%emt 0:00:26]} 12. Nxd4 {[%emt 0:00:06]} Bd7 {[%emt 0:00:59]} 13. f4 {[%emt 0:16:58]} O-O {[%emt 0:07:41] [#]} 14. g3 $146 {[%emt 0:12:51]} ({Predecessor:} 14. Bd3 f6 15. exf6 gxf6 16. Bb5 Nc6 17. Nxc6 bxc6 18. Be2 e5 19. O-O e4 20. c3 {0-1 (34) Bivol,A (2385)-Papp,P (2336) Chess.com INT 2021}) 14... Nc6 {[%emt 0:12:01]} 15. Nf3 {[%emt 0:23:25]} a6 {[%emt 0:12:29]} 16. Kd2 {[%emt 0:03:45]} Rac8 {[%emt 0:00:53]} 17. Bd3 {[%emt 0:02:50]} Na7 {[%emt 0:03:56]} 18. Nd4 {[%emt 0:00:50]} Nc6 {[%emt 0:00:50]} 19. Nxc6 {[%emt 0:07:28]} Bxc6 {[%emt 0:00:16]} 20. Rhe1 {[%emt 0:00:06]} d4 {[%emt 0:14:10]} (20... h5 $14) 21. Be4 $16 {[%emt 0:07:13] &Bianco is more active.} Rfd8 {[%emt 0:01:24]} 22. Ra5 {[%emt 0:06:41]} Bxe4 {[%emt 0:06:09]} 23. Rxe4 {[%emt 0:00:01][%mdl 4096] Endgame KRR-KRR} Rc6 {[%emt 0:00:18]} 24. Kd3 {[%emt 0:01:29]} Rdc8 {[%emt 0:01:23] [#]} 25. Re2 {[%emt 0:00:25]} b5 {[%emt 0:00:12] Against Ra4} 26. Kxd4 {[%emt 0:09:30]} ({White should try} 26. Ra1 $16) 26... Rxc2 $11 {[%emt 0:00:08] The position is equal.} 27. Rxc2 {[%emt 0:00:02]} Rxc2 {[%emt 0:00:02]} 28. Rxa6 $16 {[%emt 0:00:08] Intending Ra8+ and mate. KR-KR} h5 {[%emt 0:00:13]} 29. Rb6 {[%emt 0:03:32] Threatens to win with h4.} Rxh2 {[%emt 0:01:57]} 30. Rxb5 {[%emt 0:00:03]} Rxb2 {[%emt 0:09:57]} 31. b4 {[%emt 0:00:27][%cal Bb3b4,Bb4b5,Bb5b6,Bb6b7][%mdl 32]} Rb3 {[%emt 0:00:16]} 32. Rb8+ {[%emt 0:00:03]} Kh7 {[%emt 0:00:01]} 33. b5 {[%emt 0:00:11]} Rxg3 {[%emt 0:00:07]} 34. Ra8 {[%emt 0:01:39]} Rb3 {[%emt 0:00:42]} 35. Kc5 {[%emt 0:00:14]} h4 {[%emt 0:01:12]} 36. b6 {[%emt 0:00:38]} h3 {[%emt 0:00:50]} 37. Kc6 {[%emt 0:00:12]} h2 {[%emt 0:02:23]} 38. Ra1 {[%emt 0:00:02]} Kg6 {[%emt 0:01:32]} 39. Rh1 {[%emt 0:01:05]} Rb2 {[%emt 0:00:07]} 40. b7 {[%emt 0:00:07][%cal Oh1h2]} Rc2+ {[%emt 0:00:06]} 41. Kd6 {[%emt 0:00:12]} Rb2 {[%emt 0:00:45]} 42. Kc7 {[%emt 0:00:23][%cal Oh1h2] [#] And now Rxh2! would win.} Rc2+ {[%emt 0:00:09]} 43. Kd6 {[%emt 0:00:15]} Rb2 {[%emt 0:00:09]} 44. Kc7 {[%emt 0:00:13][%cal Oh1h2] aiming for Rxh2!} Rc2+ {[%emt 0:00:06]} 45. Kd6 {[%emt 0:00:22]} Rb2 {[%emt 0:00:02]} 46. Kc7 {[%emt 0:00:10] Weighted Error Value: White=0.04 (flawless) /Black=0.04 (flawless)} 1/2-1/2